[Event "3rd VIZAG GM-Open 2022"]
[Site "Visakapatnam"]
[Date "2022.06.17"]
[Round "10.12"]
[White "Laxman, R.R."]
[Black "Ramakrishna, J.."]
[Result "1-0"]
[ECO "E12"]
[WhiteElo "2420"]
[BlackElo "2070"]
[Annotator "TA"]
[PlyCount "35"]
[EventDate "2022.06.13"]
[EventType "swiss"]
[EventCountry "IND"]
[SourceTitle "playchess.com"]
[Source "ChessBase"]
[SourceQuality "1"]
[TimeControl "5400+30"]

{[%evp 24,35,0,0,0,-10,0,0,43,30,89,92,479,453]} 1. d4 {[%emt 0:00:03]} Nf6 {[%emt 0:00:04]} 2. Nf3 {[%emt 0:00:05]} e6 {[%emt 0:04:58]} 3. c4 {[%emt 0:00:16]} b6 {[%emt 0:00:37]} 4. a3 {[%emt 0:00:06]} Bb7 {[%emt 0:00:04]} 5. Nc3 {[%emt 0:00:07]} d5 {[%emt 0:00:03]} 6. cxd5 {[%emt 0:00:51]} Nxd5 {[%emt 0:00:05]} 7. Qc2 {[%emt 0:00:54]} Nxc3 {[%emt 0:04:05]} 8. bxc3 {[%emt 0:02:19]} Be7 {[%emt 0:00:41]} 9. e4 {[%emt 0:00:10]} O-O {[%emt 0:00:10]} 10. Bd3 {[%emt 0:00:04]} c5 {[%emt 0:00:36]} 11. O-O {[%emt 0:00:18]} Nc6 {[%emt 0:01:38]} 12. Bb2 {[%emt 0:00:14]} Rc8 {[%emt 0:05:42]} 13. Qe2 {[%emt 0:00:25]} Na5 {[%emt 0:11:47] E12: Queen's Indian: Unusual White 4th moves, 4 a3, 4 Nc3 Bb7 5 a3 and 4 Nc3 Bb7 .} 14. Rad1 {[%emt 0:00:57]} Rc7 {[%emt 0:03:30] [#]} 15. Rfe1 $146 {[%emt 0:01:27]} ({Predecessor:} 15. Ne5 Qc8 16. Ng4 Rd8 17. Ne3 Bf8 {½-½ (17) Lenic,L (2574)-Brunello,S (2477) Brescia 2009}) 15... Bc6 {[%emt 0:05:40]} 16. d5 {[%emt 0:05:17]} exd5 {[%emt 0:06:33]} (16... Ba4 $11 {keeps the balance.}) 17. exd5 $16 {[%emt 0:00:24]} Ba4 {[%emt 0:00:03][%mdl 8192] [#]} (17... Bxd5 $2 18. Be4 Bc4 19. Rxd8 $18) (17... Bb7 $16 {is more resistant.}) 18. Qe4 {[%emt 0:00:09][%csl LRa4,LRh7] Black got outplayed after the opening.  Weighted Error Value: White=0.00 (flawless) /Black=1.02} 1-0

[Event "3rd VIZAG GM-Open 2022"]
[Site "Visakapatnam"]
[Date "2022.06.17"]
[Round "10.13"]
[White "Saravana, Krishnan P."]
[Black "Nguyen, Van Huy"]
[Result "1/2-1/2"]
[ECO "C00"]
[WhiteElo "2269"]
[BlackElo "2405"]
[Annotator "RC"]
[PlyCount "185"]
[EventDate "2022.06.13"]
[EventType "swiss"]
[EventCountry "IND"]
[SourceTitle "playchess.com"]
[Source "ChessBase"]
[SourceQuality "1"]
[TimeControl "5400+30"]

1. c4 {[%emt 1:31:00]} e6 {[%emt 1:31:00]} 2. e4 {[%emt 0:00:30]} d5 {[%emt 0:00:30]} 3. exd5 {[%emt 0:00:30]} exd5 {[%emt 0:00:30]} 4. cxd5 {[%emt 0:00:30]} Nf6 {[%emt 0:00:30]} 5. Bb5+ {[%emt 0:00:30]} Nbd7 {[%emt 0:00:30]} 6. Nc3 {[%emt 0:00:30]} Be7 {[%emt 0:00:30]} 7. Nf3 {[%emt 0:00:30]} O-O {[%emt 0:00:30]} 8. O-O {[%emt 0:00:30]} Nb6 {[%emt 0:00:30]} 9. h3 {[%emt 0:00:30]} Nbxd5 {[%emt 0:00:30]} 10. d4 {[%emt 0:00:30]} Bf5 {[%emt 0:00:30]} 11. Re1 {[%emt 0:00:30]} h6 {[%emt 0:00:30]} 12. Bc4 {[%emt 0:00:30]} c6 {[%emt 0:00:30]} 13. Ne5 {[%emt 0:00:30]} Bb4 {[%emt 0:00:30]} 14. Qf3 {[%emt 0:00:30]} Bh7 {[%emt 0:00:30]} 15. Bb3 {[%emt 0:00:30]} Qb6 {[%emt 0:00:30]} 16. Rd1 {[%emt 0:00:30]} Rad8 {[%emt 0:00:30]} 17. Nxd5 {[%emt 0:00:30]} cxd5 {[%emt 0:00:30]} 18. Be3 {[%emt 0:00:30]} Qe6 {[%emt 0:00:30]} 19. Qe2 {[%emt 0:00:30]} Ba5 {[%emt 0:00:30]} 20. Bd2 {[%emt 0:00:30]} Bxd2 {[%emt 0:00:30]} 21. Qxd2 {[%emt 0:00:30]} Rc8 {[%emt 0:00:30]} 22. Qb4 {[%emt 0:00:30]} Bc2 {[%emt 0:00:30]} 23. Re1 {[%emt 0:00:30]} Qb6 {[%emt 0:00:30]} 24. Qxb6 {[%emt 0:00:30]} axb6 {[%emt 0:00:30]} 25. Re3 {[%emt 0:00:30]} Rfe8 {[%emt 0:00:30]} 26. Rc1 {[%emt 0:00:30]} Bf5 {[%emt 0:00:30]} 27. Rec3 {[%emt 0:00:30]} Rxc3 {[%emt 0:00:30]} 28. Rxc3 {[%emt 0:00:30]} Rc8 {[%emt 0:00:30]} 29. Rxc8+ {[%emt 0:00:30]} Bxc8 {[%emt 0:00:30]} 30. g4 {[%emt 0:00:30]} Kf8 {[%emt 0:00:30]} 31. f4 {[%emt 0:00:30]} Ke7 {[%emt 0:00:30]} 32. f5 {[%emt 0:00:30]} Bd7 {[%emt 0:00:30]} 33. Kf2 {[%emt 0:00:30]} Be8 {[%emt 0:00:30]} 34. Bc2 {[%emt 0:00:30]} Kd6 {[%emt 0:00:30]} 35. Ke3 {[%emt 0:00:30]} Ng8 {[%emt 0:00:30]} 36. Nd3 {[%emt 0:00:30]} f6 {[%emt 0:00:30]} 37. Nf4 {[%emt 0:00:30]} Bf7 {[%emt 0:00:30]} 38. Kd2 {[%emt 0:00:30]} Ne7 {[%emt 0:00:30]} 39. Kc3 {[%emt 0:00:30]} Nc6 {[%emt 0:00:30]} 40. Ba4 {[%emt 0:00:30]} Ne7 {[%emt 0:00:30]} 41. Bc2 {[%emt 0:00:30]} Nc6 {[%emt 0:00:30]} 42. Bd3 {[%emt 0:00:30]} Ne7 {[%emt 0:00:30]} 43. b4 {[%emt 0:00:30]} Nc6 {[%emt 0:00:30]} 44. Be2 {[%emt 0:00:30]} Ne7 {[%emt 0:00:30]} 45. Bd3 {[%emt 0:00:30]} Nc6 {[%emt 0:00:30]} 46. a3 {[%emt 0:00:30]} Ne7 {[%emt 0:00:30]} 47. Bb1 {[%emt 0:00:30]} Nc6 {[%emt 0:00:30]} 48. Bc2 {[%emt 0:00:30]} Ne7 {[%emt 0:00:30]} 49. Bd3 {[%emt 0:00:30]} Nc6 {[%emt 0:00:30]} 50. h4 {[%emt 0:00:30]} Ne7 {[%emt 0:00:30]} 51. h5 {[%emt 0:00:30]} Kc6 {[%emt 0:00:30]} 52. a4 {[%emt 0:00:30]} Nc8 {[%emt 0:00:30]} 53. Bb5+ {[%emt 0:00:30]} Kc7 {[%emt 0:00:30]} 54. Be2 {[%emt 0:00:30]} Ne7 {[%emt 0:00:30]} 55. Bf3 {[%emt 0:00:30]} Kd6 {[%emt 0:00:30]} 56. Nd3 {[%emt 0:00:30]} Nc6 {[%emt 0:00:30]} 57. Nc1 {[%emt 0:00:30]} Be8 {[%emt 0:00:30]} 58. Ne2 {[%emt 0:00:30]} Ne7 {[%emt 0:00:30]} 59. b5 {[%emt 0:00:30]} Bf7 {[%emt 0:00:30]} 60. Kb4 {[%emt 0:00:30]} Nc8 {[%emt 0:00:30]} 61. Nc3 {[%emt 0:00:30]} Bg8 {[%emt 0:00:30]} 62. Nb1 {[%emt 0:00:30]} Bf7 {[%emt 0:00:30]} 63. Nd2 {[%emt 0:00:30]} Kc7 {[%emt 0:00:30]} 64. Nf1 {[%emt 0:00:30]} Kd6 {[%emt 0:00:30]} 65. Ne3 {[%emt 0:00:30]} Bg8 {[%emt 0:00:30]} 66. Bg2 {[%emt 0:00:30]} Bf7 {[%emt 0:00:30]} 67. Bf3 {[%emt 0:00:30]} Bg8 {[%emt 0:00:30]} 68. a5 {[%emt 0:00:30]} bxa5+ {[%emt 0:00:30]} 69. Kxa5 {[%emt 0:00:30]} Bf7 {[%emt 0:00:30]} 70. Nc2 {[%emt 0:00:30]} Kc7 {[%emt 0:00:30]} 71. Nb4 {[%emt 0:00:30]} Nb6 {[%emt 0:00:30]} 72. Nd3 {[%emt 0:00:30]} Nc4+ {[%emt 0:00:30]} 73. Kb4 {[%emt 0:00:30]} b6 {[%emt 0:00:30]} 74. Nf4 {[%emt 0:00:30]} Kd6 {[%emt 0:00:30]} 75. Be2 {[%emt 0:00:30]} Na5 {[%emt 0:00:30]} 76. Nd3 {[%emt 0:00:30]} Nb7 {[%emt 0:00:30]} 77. Bf3 {[%emt 0:00:30]} Nd8 {[%emt 0:00:30]} 78. Nb2 {[%emt 0:00:30]} Bg8 {[%emt 0:00:30]} 79. Bg2 {[%emt 0:00:30]} Bf7 {[%emt 0:00:30]} 80. Na4 {[%emt 0:00:30]} Kc7 {[%emt 0:00:30]} 81. Nc3 {[%emt 0:00:30]} Kd6 {[%emt 0:00:30]} 82. Nd1 {[%emt 0:00:30]} Bg8 {[%emt 0:00:30]} 83. Ne3 {[%emt 0:00:30]} Bf7 {[%emt 0:00:30]} 84. Bf3 {[%emt 0:00:30]} Bg8 {[%emt 0:00:30]} 85. Ka4 {[%emt 0:00:30]} Bf7 {[%emt 0:00:30]} 86. Ka3 {[%emt 0:00:30]} Bg8 {[%emt 0:00:30]} 87. Kb3 {[%emt 0:00:30]} Bf7 {[%emt 0:00:30]} 88. Kb4 {[%emt 0:00:30]} Bg8 {[%emt 0:00:30]} 89. Nd1 {[%emt 0:00:30]} Bf7 {[%emt 0:00:30]} 90. Nb2 {[%emt 0:00:30]} Bg8 {[%emt 0:00:30]} 91. Na4 {[%emt 0:00:30]} Kc7 {[%emt 0:00:30]} 92. Nc3 {[%emt 0:00:30]} Kd6 {[%emt 0:00:30]} 93. Na4 {[%emt 0:00:30]} 1/2-1/2

[Event "3rd VIZAG GM-Open 2022"]
[Site "Visakapatnam"]
[Date "2022.06.17"]
[Round "10.14"]
[White "Pawar, Harshit"]
[Black "Subhayan Kundu"]
[Result "0-1"]
[ECO "D00"]
[WhiteElo "1961"]
[BlackElo "2323"]
[Annotator "TA"]
[PlyCount "120"]
[EventDate "2022.06.13"]
[EventType "swiss"]
[EventCountry "IND"]
[SourceTitle "playchess.com"]
[Source "ChessBase"]
[SourceQuality "1"]
[TimeControl "5400+30"]

{[%evp 9,120,-2,0,0,7,1,1,-4,22,8,49,45,58,8,34,38,58,48,74,65,75,35,31,26,25,13,49,18,26,18,20,0,30,0,0,0,0,0,0,0,24,10,20,0,9,-43,-47,-75,-99,-109,-118,-115,-117,-186,-209,-194,-177,-175,-184,-184,-175,-181,-171,-332,-332,-495,-495,-495,-495,-495,-495,-1335,-1112,-2535,-2429,-1546,-1293,-29971,-29970,-29970,-29969,-29973,-29968,-29975,-29975,-29973,-29974,-29979,-29979,-29981,-29982,-29980,-29981,-29983,-29984,-29985,-29986,-29986,-29985,-29985,-29986,-29987,-29986,-29990,-29991,-29991,-29992,-29992,-29993,-29993,-29994,-29994,-29995]} 1. d4 {[%emt 1:31:00]} Nf6 {[%emt 1:31:00]} 2. Bg5 {[%emt 0:00:30]} d5 {[%emt 0:00:30]} 3. Nd2 {[%emt 0:00:30]} h6 {[%emt 0:00:30]} 4. Bh4 {[%emt 0:00:30]} c5 {[%emt 0:00:30]} 5. e3 {[%emt 0:00:30]} Nc6 {[%emt 0:00:30]} 6. c3 {[%emt 0:00:30] D00: 1 d4 d5: Unusual lines.} e5 {[%emt 0:00:30]} 7. dxe5 {[%emt 0:00:30]} Nxe5 {[%emt 0:00:30] [#]} 8. Ndf3 $146 {[%emt 0:00:30] The position is equal.} ({Predecessor:} 8. Ngf3 Nxf3+ 9. Nxf3 Be7 10. Bb5+ Bd7 11. Bxd7+ Qxd7 12. Ne5 Qe6 13. Bxf6 Bxf6 14. Qa4+ {½-½ (57) Anisimov,P (2521)-Kobo,O (2505) Chess.com INT 2018}) 8... Nc6 {[%emt 0:00:30]} 9. Bxf6 {[%emt 0:00:30]} gxf6 {[%emt 0:00:30]} 10. Ne2 {[%emt 0:00:30]} Qb6 {[%emt 0:00:30]} 11. Qb3 {[%emt 0:00:30]} (11. b3 $14) 11... Qxb3 {[%emt 0:00:30]} 12. axb3 {[%emt 0:00:30]} Bf5 {[%emt 0:00:30]} 13. Nf4 {[%emt 0:00:30]} O-O-O {[%emt 0:00:30]} 14. Bb5 {[%emt 0:00:30]} Kb8 {[%emt 0:00:30]} 15. Rd1 {[%emt 0:00:30]} (15. Bxc6 $5 bxc6 16. O-O $14) 15... a6 {[%emt 0:00:30]} 16. Bd3 {[%emt 0:00:30]} Be6 {[%emt 0:00:30]} 17. Bc2 {[%emt 0:00:30]} (17. Nxe6 fxe6 18. c4 Bd6 $11) 17... Be7 {[%emt 0:00:30][%cal Od5d4]} 18. h3 {[%emt 0:00:30]} f5 {[%emt 0:00:30]} 19. O-O {[%emt 0:00:30]} Bg5 {[%emt 0:00:30]} 20. Nd3 {[%emt 0:00:30]} b6 {[%emt 0:00:30]} 21. Nfe5 {[%emt 0:00:30]} Nxe5 {[%emt 0:00:30]} 22. Nxe5 {[%emt 0:00:30]} Kb7 {[%emt 0:00:30] Prevents Nc6.} 23. g3 {[%emt 0:00:30]} Rhg8 {[%emt 0:00:30]} 24. Kh2 {[%emt 0:00:30]} Rg7 {[%emt 0:00:30]} 25. h4 {[%emt 0:00:30]} Bf6 {[%emt 0:00:30]} 26. Nd3 {[%emt 0:00:30]} Rgg8 {[%emt 0:00:30]} 27. b4 {[%emt 0:00:30]} (27. Rc1 $11) 27... d4 $15 {[%emt 0:00:30]} 28. exd4 {[%emt 0:00:30]} cxd4 {[%emt 0:00:30] White is now going downhill.} 29. Nf4 {[%emt 0:00:30]} Bc4 {[%emt 0:00:30]} 30. Rfe1 {[%emt 0:00:30]} dxc3 {[%emt 0:00:30]} 31. bxc3 {[%emt 0:00:30]} (31. b3 $17 Rxd1 32. Rxd1) 31... Bxc3 $19 {[%emt 0:00:30] A strong pair of Bishops.} (31... Rxd1 32. Bxd1 Kc6 33. Be2 Bxe2 34. Rxe2 $11 (34. Nxe2 Ra8 $15)) 32. Re7+ {[%emt 0:00:30]} Kb8 {[%emt 0:00:30]} 33. Rdd7 {[%emt 0:00:30]} Rxd7 {[%emt 0:00:30]} (33... Bxb4 {is a self mate.} 34. Rb7+ Ka8 35. Ra7+ Kb8 36. Reb7+ Kc8 37. Bxf5+ Be6 38. Nxe6 fxe6 39. Bxe6+) 34. Rxd7 {[%emt 0:00:30]} Bxb4 {[%emt 0:00:30]} 35. Bxf5 {[%emt 0:00:30]} Re8 {[%emt 0:00:30] Prevents Be4.} 36. f3 $2 {[%emt 0:00:30]} (36. Bd3 b5 37. Bxc4 bxc4 38. Nd5) 36... a5 {[%emt 0:00:30]} 37. Be4 {[%emt 0:00:30] [#]} (37. Nd5 $142 Bc5 38. Nc3) 37... Rxe4 $1 {[%emt 0:00:30][%mdl 512]} 38. fxe4 {[%emt 0:00:30][%mdl 4096] Endgame KRN-KB} a4 {[%emt 0:00:30]} 39. Nd5 {[%emt 0:00:30]} Bxd5 {[%emt 0:00:30]} 40. exd5 {[%emt 0:00:30] KR-KB} (40. Rxd5 $142 a3 41. Rd4) 40... a3 {[%emt 0:00:30] And now ...a2 would win.} 41. d6 {[%emt 0:00:30]} a2 {[%emt 0:00:30]} 42. Rd8+ {[%emt 0:00:30]} Kb7 {[%emt 0:00:30]} 43. Rd7+ {[%emt 0:00:30] [#]} Kc8 $1 {[%emt 0:00:30] Black mates.} ({Stronger than} 43... Kc6 44. Ra7 $11) 44. Ra7 {[%emt 0:00:30]} Ba5 {[%emt 0:00:30]} 45. Rc7+ {[%emt 0:00:30]} Kd8 {[%emt 0:00:30]} 46. Rc1 {[%emt 0:00:30] [#]} Bc3 $1 {[%emt 0:00:30][%mdl 576] Deflection, Promotion} 47. Rxc3 {[%emt 0:00:30]} a1=Q {[%emt 0:00:30] KQ-KR} 48. Rc7 {[%emt 0:00:30]} Qa2+ {[%emt 0:00:30]} 49. Kg1 {[%emt 0:00:30]} b5 {[%emt 0:00:30][%cal Bb6b5,Bb5b4][%mdl 32]} 50. Rb7 {[%emt 0:00:30]} Qd5 {[%emt 0:00:30]} 51. Rb8+ {[%emt 0:00:30]} Kd7 {[%emt 0:00:30]} 52. Kh2 b4 {[%emt 0:00:30]} 53. Kh3 {[%emt 0:01:00]} Qxd6 {[%emt 0:00:30]} 54. Rb7+ {[%emt 0:00:30]} Ke6 {[%emt 0:00:30]} 55. h5 {[%emt 0:00:30]} Kf6 {[%emt 0:00:30]} 56. Kg4 {[%emt 0:00:30]} Qe6+ {[%emt 0:00:30]} 57. Kf4 {[%emt 0:00:30]} Qe5+ {[%emt 0:00:30]} 58. Kf3 {[%emt 0:00:30]} Qd5+ {[%emt 0:00:30]} 59. Kf4 {[%emt 0:00:30]} Qxb7 {[%emt 0:00:30]} 60. g4 {[%emt 0:00:30]} b3 {[%emt 0:00:30] Weighted Error Value: White=0.41/Black=0.07 (flawless)} 0-1

[Event "3rd VIZAG GM-Open 2022"]
[Site "Visakapatnam"]
[Date "2022.06.17"]
[Round "10.15"]
[White "Mayank Chakraborty"]
[Black "Nguyen, Duc Hoa"]
[Result "0-1"]
[ECO "B85"]
[WhiteElo "2015"]
[BlackElo "2398"]
[Annotator "TA"]
[PlyCount "60"]
[EventDate "2022.06.13"]
[EventType "swiss"]
[EventCountry "IND"]
[SourceTitle "playchess.com"]
[Source "ChessBase"]
[SourceQuality "1"]
[TimeControl "5400+30"]

{[%evp 21,60,22,24,-15,-14,-103,-95,-172,-159,-157,-177,-205,-216,-231,-231,-208,-210,-213,-224,-208,-169,-268,-272,-293,-286,-379,-338,-979,-963,-6507,-6179,-6099,-5357,-2233,-1289,-29973,-29974,-29989,-29990,-29996,-29997]} 1. e4 {[%emt 1:31:00]} c5 {[%emt 1:31:00]} 2. Nf3 {[%emt 0:00:30]} e6 {[%emt 0:00:30]} 3. d4 {[%emt 0:00:30]} cxd4 {[%emt 0:00:30]} 4. Nxd4 {[%emt 0:00:30]} Nc6 {[%emt 0:00:30]} 5. Nc3 {[%emt 0:00:30]} Qc7 {[%emt 0:00:30]} 6. f4 {[%emt 0:00:30]} d6 {[%emt 0:00:30]} 7. Be3 {[%emt 0:00:30]} a6 {[%emt 0:00:30]} 8. a4 {[%emt 0:00:30]} Nf6 {[%emt 0:00:30]} 9. Be2 {[%emt 0:00:30]} Be7 {[%emt 0:00:30]} 10. O-O {[%emt 0:00:30]} O-O {[%emt 0:00:30]} 11. Kh1 {[%emt 0:00:30]} Rd8 {[%emt 0:00:30]} 12. Nxc6 {[%emt 0:00:30] B85: Sicilian Scheveningen: 6 Be2 a6, lines with early Be3.} bxc6 {[%emt 0:00:30] [#]} 13. g4 $146 {[%emt 0:00:30]} (13. Qe1 $11 {keeps the balance.}) ({Predecessor:} 13. a5 c5 14. Qe1 Bb7 15. Bf3 d5 16. e5 Ne8 17. Bd2 g6 18. Na4 Ng7 19. Nb6 Rab8 {1-0 (76) Toma,K (2259)-Kriebel,T (2203) Frydek Mistek 2010}) 13... d5 $17 {[%emt 0:00:30][%cal Bd6d5,Bd5d4,Bd4e3][%mdl 32]} 14. e5 {[%emt 0:00:30] [#]} (14. exd5 $17 cxd5 15. Bd4) 14... d4 $1 $19 {[%emt 0:00:30]} ({Don't do} 14... Ne4 15. Nxe4 dxe4 16. Qe1 $14) 15. exf6 {[%emt 0:00:30]} Bxf6 {[%emt 0:00:30]} 16. Ne4 {[%emt 0:00:30]} dxe3 {[%emt 0:00:30][%mdl 64] Discovered Attack} 17. Nxf6+ {[%emt 0:00:30]} gxf6 {[%emt 0:00:30]} 18. Qe1 {[%emt 0:00:30]} Rd2 {[%emt 0:00:30]} 19. Ra3 {[%emt 0:00:30]} Bb7 {[%emt 0:00:30]} 20. Rxe3 {[%emt 0:00:30]} c5+ {[%emt 0:00:30]} 21. Bf3 {[%emt 0:00:30]} (21. Kg1 $142 Rxc2 22. Qh4) 21... Rad8 {[%emt 0:00:30][%cal Oc7f4]} ({But not} 21... Rxc2 $2 22. Rf2 Rxf2 23. Qxf2 $19) 22. Qg3 {[%emt 0:00:30]} Rxc2 {[%emt 0:00:30] [#] aiming for ...Rdd2.} 23. b3 {[%emt 0:00:30]} Rdd2 {[%emt 0:00:30]} 24. h4 $2 {[%emt 0:00:30]} (24. Kg1) 24... c4 {[%emt 0:00:30] And now ...cxb3 would win.} 25. bxc4 {[%emt 0:00:30]} Qxc4 {[%emt 0:00:30]} 26. Kg1 {[%emt 0:00:30]} Bxf3 {[%emt 0:00:30]} 27. Rexf3 {[%emt 0:00:30]} Qxa4 {[%emt 0:00:30] ( -> ...Qd4+)} 28. f5 {[%emt 0:00:30]} Qd4+ {[%emt 0:00:30] Black mates.} 29. Kh1 {[%emt 0:00:30]} Qb2 {[%emt 0:00:30]} 30. Qb8+ {[%emt 0:00:30]} Qxb8 {[%emt 0:00:30] White did not feel at home in the position after the opening.  Weighted Error Value: White=1.13/Black=0.02 (flawless)} 0-1

[Event "3rd VIZAG GM-Open 2022"]
[Site "Visakapatnam"]
[Date "2022.06.17"]
[Round "10.16"]
[White "Velpula Sarayu"]
[Black "Barath Kalyan M"]
[Result "1-0"]
[ECO "B23"]
[WhiteElo "1845"]
[BlackElo "2232"]
[Annotator "TA"]
[PlyCount "97"]
[EventDate "2022.06.13"]
[EventType "swiss"]
[EventCountry "IND"]
[SourceTitle "playchess.com"]
[Source "ChessBase"]
[SourceQuality "1"]
[TimeControl "5400+30"]

{[%evp 9,96,23,23,20,23,13,41,26,33,29,25,10,25,22,31,26,40,27,20,34,56,41,49,37,39,25,31,0,0,0,0,0,0,0,0,-1,6,8,41,0,25,0,0,-54,-47,-56,-34,-110,-27,-102,0,0,0,0,0,0,0,0,901,804,6319,146,143,141,140,140,139,115,98,8,8,8,29969,29970,29970,29971,29971,29972,29994,29995,29995,29996,29996,29997,29997,29998,29998,29999,29999]} 1. e4 {[%emt 1:31:00]} c5 {[%emt 0:00:37]} 2. Nc3 {[%emt 0:00:00]} a6 {[%emt 0:00:22]} 3. g3 {[%emt 0:00:00]} Nc6 {[%emt 0:01:17]} 4. Nge2 {[%emt 0:00:00]} g6 {[%emt 0:05:34]} 5. d4 {[%emt 0:00:00]} cxd4 $1 {[%emt 0:00:06]} 6. Nxd4 {[%emt 0:00:00] B23: Closed Sicilian: Lines without g3.} Bg7 {[%emt 0:00:06]} 7. Be3 {[%emt 0:00:00] next Nd5 is good for White.} d6 {[%emt 0:00:33]} 8. Bg2 {[%emt 0:00:00] White is slightly better.} Bd7 {[%emt 0:01:10]} 9. O-O {[%emt 0:00:00]} Nf6 {[%emt 0:01:17]} 10. Nxc6 {[%emt 0:00:00]} (10. Nd5 {with more complications.} Ne5 11. b3 Neg4 12. Bg5) 10... Bxc6 {[%emt 0:01:35]} 11. a4 {[%emt 0:00:00] [#]} a5 $146 {[%emt 0:05:40]} ({Predecessor:} 11... O-O 12. Bd4 Rc8 13. Re1 Re8 14. Qe2 Qa5 15. Ra3 Nd7 16. Bxg7 Kxg7 17. Qe3 Rc7 {½-½ (38) Bukacek,L (2113)-Karasek,L (2206) Czech Republic 2017}) 12. Re1 {[%emt 0:00:00]} O-O {[%emt 1:18:13]} 13. Nd5 {[%emt 0:00:00]} e6 {[%emt 0:00:00]} 14. Nxf6+ {[%emt 0:00:00]} Qxf6 {[%emt 0:00:00]} 15. c3 {[%emt 0:00:00]} Rfd8 {[%emt 0:00:00]} 16. Qd2 {[%emt 0:00:00]} Qe7 {[%emt 0:00:00]} 17. h4 {[%emt 0:08:00]} Qc7 {[%emt 0:00:00]} 18. Bd4 {[%emt 0:00:00]} d5 {[%emt 0:00:00]} (18... e5 $5 19. Be3 b5 $11) 19. e5 {[%emt 0:00:00]} Rdb8 {[%emt 0:00:00]} 20. Qe3 {[%emt 0:00:00]} b5 {[%emt 0:00:00]} 21. Bc5 {[%emt 0:00:00]} Qc8 {[%emt 0:00:00]} 22. Bd6 {[%emt 0:00:00]} Rb7 {[%emt 0:00:00]} 23. axb5 {[%emt 0:00:00]} Rxb5 {[%emt 0:00:00]} 24. Ra2 {[%emt 0:00:00]} Bf8 {[%emt 0:00:00]} 25. Bf1 {[%emt 0:00:00]} Rb3 {[%emt 0:00:00]} 26. Qc5 {[%emt 0:00:00]} (26. h5 $11) 26... Bxd6 $15 {[%emt 0:00:00]} 27. Qxd6 {[%emt 0:00:00][%cal Oh4h5]} a4 {[%emt 0:00:00]} 28. c4 {[%emt 0:00:00]} (28. Bd3 $15) 28... Rab8 {[%emt 0:00:00]} (28... dxc4 $17 {aiming for ...Bd5.} 29. Bxc4 Rb6) 29. Rc1 {[%emt 0:00:00]} (29. cxd5 $11 {remains equal.} Bxd5 30. Rxa4) 29... Qb7 {[%emt 0:00:00]} (29... Be8 $17 {...R8b7 is the strong threat.} 30. h5 R8b7) 30. cxd5 $11 {[%emt 0:00:00]} Bxd5 {[%emt 0:00:00] Threatens to win with ...Rb6.} 31. Rxa4 {[%emt 0:00:00]} Rxb2 {[%emt 0:00:00]} 32. Rc7 {[%emt 0:00:00]} Qb3 {[%emt 0:00:00]} 33. Ra3 $1 {[%emt 0:00:00][%cal Ba4a3,Ba3c3,Bc3c8][%mdl 32]} (33. Rf4 $2 Rb1 34. Qa6 (34. Rfxf7 $2 Rxf1+ 35. Kxf1 Qd1#) 34... Rf8 $19) 33... Qd1 $2 {[%emt 0:00:00][%mdl 8192]} (33... Qb4 $11 34. Qxb4 R8xb4) 34. Rac3 $1 $18 {[%emt 0:00:00] White threatens Rc8+ and mate.} Kg7 {[%emt 0:00:55] [#]} 35. Rc8 $2 {[%emt 0:00:09]} (35. Rxf7+ $1 $18 {[%mdl 512]} Kxf7 36. Rc7+ Kg8 37. Qe7 Qxf1+ 38. Kxf1 Rb1+ 39. Ke2 R8b2+ 40. Ke3 Re1+ 41. Kd4 Re4+ 42. Kd3 Rb3+ 43. Kd2 Rd4+ 44. Kc2 Rc4+ 45. Rxc4 Bxc4 46. Qd8+ Kg7 47. Qc7+ Kh8 48. Qxc4) 35... Rxc8 $16 {[%emt 0:00:11]} 36. Rxc8 {[%emt 0:00:03][%csl Gc8][%cal Rd6f8]} Kh6 {[%emt 0:00:05]} 37. Qf8+ {[%emt 0:01:07]} Kh5 {[%emt 0:00:02]} 38. Qxf7 {[%emt 0:00:18]} h6 {[%emt 0:00:45] [#] ( -> ...Rb1)} 39. Qf4 $40 {[%emt 0:02:28][%mdl 128] White is up to no good.} ({Of course not} 39. Rg8 $6 Be4 40. Qf4 Rb1 $11) (39. Qf6 $1 $16 {Strongly threatening Rh8.} Be4 40. Rd8 (40. Rh8 Qc1 $16)) 39... Rb1 $11 {[%emt 0:05:38]} 40. Kh2 $1 {[%emt 0:00:05][%cal Oc8h8] Intending Rh8! and mate. The board is on fire.} Qxf1 $4 {[%emt 0:01:31][%mdl 8192] Black cannot hold the game after this.} (40... Rb4 $11 41. Rc1 (41. Qxb4 {is a self mate.} Qxf1 42. g4+ Kxh4 43. g5+ Kh5) 41... Rxf4 42. Rxd1 Rxf2+ 43. Kg1 Rc2 44. Rxd5 exd5) 41. g4+ {[%emt 0:00:29] White mates.} Kxh4 {[%emt 0:00:07]} 42. Qxh6+ {[%emt 0:01:17]} Kxg4 {[%emt 0:00:06]} 43. Qxg6+ {[%emt 0:00:04]} Kf4 {[%emt 0:02:32]} 44. Qg3+ {[%emt 0:00:10]} Ke4 {[%emt 0:02:24]} 45. Qe3+ {[%emt 0:00:04]} Kf5 {[%emt 0:00:22]} 46. Rf8+ {[%emt 0:00:03]} Kg6 {[%emt 0:01:07]} 47. Rf6+ {[%emt 0:00:35]} Kh5 {[%emt 0:00:47]} 48. Qh6+ {[%emt 0:00:05]} Kg4 {[%emt 0:00:04]} 49. Rf4# {[%emt 0:00:03] Weighted Error Value: White=0.27 (precise) /Black=0.28 (precise)} 1-0